[Event "Live Chess"]
[Site "Chess.com"]
[Date "2021.02.06"]
[Round "2"]
[White "daodao01"]
[Black "Tactivian"]
[Result "1-0"]
[CurrentPosition "6Q1/7Q/1K6/8/7k/8/8/8 b - -"]
[Timezone "UTC"]
[ECO "C41"]
[ECOUrl "https://www.chess.com/openings/Philidor-Defense-3.Bc4"]
[UTCDate "2021.02.06"]
[UTCTime "19:02:08"]
[WhiteElo "1010"]
[BlackElo "802"]
[TimeControl "1200+10"]
[Termination "daodao01 won by checkmate"]
[StartTime "19:02:08"]
[EndDate "2021.02.06"]
[EndTime "19:11:54"]
[Link "https://www.chess.com/live/game/6472142239"]

1. e4 {[%clk 0:20:09.9]} 1... e5 {[%clk 0:20:07.7]} 2. Nf3 {[%clk 0:20:18.7]} 2... d6 {[%clk 0:20:13.1]} 3. Bc4 {[%clk 0:20:27.3]} 3... Be6 {[%clk 0:20:20.2]} 4. d3 {[%clk 0:20:34]} 4... Bxc4 {[%clk 0:20:27.5]} 5. dxc4 {[%clk 0:20:42.4]} 5... Nc6 {[%clk 0:20:35.4]} 6. Nc3 {[%clk 0:20:50.3]} 6... Nf6 {[%clk 0:20:37.5]} 7. O-O {[%clk 0:20:58]} 7... Be7 {[%clk 0:20:45.2]} 8. Be3 {[%clk 0:21:01.7]} 8... O-O {[%clk 0:20:52.4]} 9. Nd5 {[%clk 0:21:08.2]} 9... Nxd5 {[%clk 0:20:57.5]} 10. cxd5 {[%clk 0:21:16.3]} 10... Nb4 {[%clk 0:21:04.5]} 11. c3 {[%clk 0:21:22.7]} 11... Na6 {[%clk 0:21:06.5]} 12. b4 {[%clk 0:21:28.9]} 12... Qd7 {[%clk 0:21:09.2]} 13. b5 {[%clk 0:21:33.9]} 13... Nb8 {[%clk 0:21:11.9]} 14. Rb1 {[%clk 0:21:38.9]} 14... a6 {[%clk 0:21:18]} 15. bxa6 {[%clk 0:21:46.1]} 15... Rxa6 {[%clk 0:21:24.6]} 16. Rxb7 {[%clk 0:21:49.5]} 16... Rxa2 {[%clk 0:21:30.2]} 17. Bb6 {[%clk 0:21:47.5]} 17... Na6 {[%clk 0:21:33]} 18. Be3 {[%clk 0:21:42.6]} 18... Ra3 {[%clk 0:21:32.4]} 19. Ra7 {[%clk 0:21:45.1]} 19... Ra5 {[%clk 0:21:30]} 20. Bb6 {[%clk 0:21:34.8]} 20... Rb5 {[%clk 0:21:26.1]} 21. Be3 {[%clk 0:21:36.9]} 21... Nb8 {[%clk 0:21:30.8]} 22. Qd2 {[%clk 0:21:39.2]} 22... Qg4 {[%clk 0:21:36.4]} 23. Qd3 {[%clk 0:21:39.5]} 23... Rb2 {[%clk 0:21:35.9]} 24. Rb1 {[%clk 0:21:34.6]} 24... Rxb1+ {[%clk 0:21:40.2]} 25. Qxb1 {[%clk 0:21:41.3]} 25... Nd7 {[%clk 0:21:44.2]} 26. h3 {[%clk 0:21:36.1]} 26... Qg6 {[%clk 0:21:45.6]} 27. g3 {[%clk 0:21:34.8]} 27... Rb8 {[%clk 0:21:46.5]} 28. Rb7 {[%clk 0:21:35.9]} 28... Rxb7 {[%clk 0:21:53.2]} 29. Qxb7 {[%clk 0:21:41.9]} 29... Bd8 {[%clk 0:21:56.9]} 30. Qc8 {[%clk 0:21:48.8]} 30... Qf6 {[%clk 0:21:59.6]} 31. Qxd7 {[%clk 0:21:53.7]} 31... g5 {[%clk 0:21:55.9]} 32. Bxg5 {[%clk 0:21:52.8]} 32... Qxf3 {[%clk 0:21:59]} 33. Qxd8+ {[%clk 0:22:00.5]} 33... Kg7 {[%clk 0:22:06.7]} 34. Qf6+ {[%clk 0:22:08.7]} 34... Qxf6 {[%clk 0:22:13.4]} 35. Bxf6+ {[%clk 0:22:16.9]} 35... Kxf6 {[%clk 0:22:22.7]} 36. f3 {[%clk 0:22:24.6]} 36... h5 {[%clk 0:22:30.7]} 37. h4 {[%clk 0:22:31.2]} 37... Kg6 {[%clk 0:22:37.7]} 38. Kf2 {[%clk 0:22:40.1]} 38... f6 {[%clk 0:22:46.4]} 39. Ke3 {[%clk 0:22:48]} 39... f5 {[%clk 0:22:53.3]} 40. c4 {[%clk 0:22:52.3]} 40... fxe4 {[%clk 0:23:01.3]} 41. Kxe4 {[%clk 0:23:00.1]} 41... Kf6 {[%clk 0:23:09]} 42. f4 {[%clk 0:23:09]} 42... exf4 {[%clk 0:23:17.4]} 43. Kxf4 {[%clk 0:23:17.7]} 43... Kg6 {[%clk 0:23:25.3]} 44. g4 {[%clk 0:23:22.7]} 44... hxg4 {[%clk 0:23:33]} 45. Kxg4 {[%clk 0:23:31.3]} 45... Kh6 {[%clk 0:23:41.9]} 46. Kf5 {[%clk 0:23:39.7]} 46... Kh5 {[%clk 0:23:47.4]} 47. Ke6 {[%clk 0:23:48.3]} 47... Kxh4 {[%clk 0:23:50.6]} 48. Kd7 {[%clk 0:23:56.3]} 48... c5 {[%clk 0:23:52]} 49. Kxd6 {[%clk 0:24:03.7]} 49... Kg5 {[%clk 0:23:58.6]} 50. Kc6 {[%clk 0:24:11.3]} 50... Kf4 {[%clk 0:24:06.9]} 51. d6 {[%clk 0:24:20.3]} 51... Ke5 {[%clk 0:24:15.9]} 52. Kxc5 {[%clk 0:24:28.7]} 52... Ke6 {[%clk 0:24:25.2]} 53. Kc6 {[%clk 0:24:37.7]} 53... Ke5 {[%clk 0:24:34]} 54. Kc7 {[%clk 0:24:46.3]} 54... Ke6 {[%clk 0:24:43.4]} 55. d7 {[%clk 0:24:55.2]} 55... Ke7 {[%clk 0:24:52.7]} 56. d8=Q+ {[%clk 0:25:03.8]} 56... Ke6 {[%clk 0:25:02]} 57. Qd7+ {[%clk 0:25:12.7]} 57... Ke5 {[%clk 0:25:11]} 58. Kb6 {[%clk 0:25:21]} 58... Ke4 {[%clk 0:25:18.3]} 59. c5 {[%clk 0:25:29]} 59... Ke5 {[%clk 0:25:27.1]} 60. c6 {[%clk 0:25:38]} 60... Kf6 {[%clk 0:25:36]} 61. c7 {[%clk 0:25:46.9]} 61... Ke5 {[%clk 0:25:45]} 62. c8=Q {[%clk 0:25:55.6]} 62... Ke4 {[%clk 0:25:53.9]} 63. Qce8+ {[%clk 0:26:04.5]} 63... Kf3 {[%clk 0:26:02.6]} 64. Qdf7+ {[%clk 0:26:13.3]} 64... Kg4 {[%clk 0:26:12]} 65. Qeg8+ {[%clk 0:26:22]} 65... Kh4 {[%clk 0:26:07.2]} 66. Qfh7# {[%clk 0:26:30.5]} 1-0

[Event "Live Chess"]
[Site "Chess.com"]
[Date "2021.02.06"]
[Round "2"]
[White "TerribleResolution"]
[Black "InkyEmptyMovie"]
[Result "1-0"]
[CurrentPosition "r3rk2/p4pQp/1pPP4/1b1B4/N6P/1P1P4/1BP2PP1/R3R1K1 b - -"]
[Timezone "UTC"]
[ECO "C25"]
[ECOUrl "https://www.chess.com/openings/Vienna-Game"]
[UTCDate "2021.02.06"]
[UTCTime "19:04:32"]
[WhiteElo "470"]
[BlackElo "247"]
[TimeControl "1200+10"]
[Termination "TerribleResolution won by checkmate"]
[StartTime "19:04:32"]
[EndDate "2021.02.06"]
[EndTime "19:09:47"]
[Link "https://www.chess.com/live/game/6472162402"]

1. e4 {[%clk 0:20:06.8]} 1... e5 {[%clk 0:20:05.4]} 2. Nc3 {[%clk 0:20:15]} 2... Bd6 {[%clk 0:20:10.9]} 3. Nf3 {[%clk 0:20:23.6]} 3... Na6 {[%clk 0:20:17.1]} 4. Bc4 {[%clk 0:20:26.9]} 4... Nf6 {[%clk 0:20:22.6]} 5. O-O {[%clk 0:20:35.4]} 5... O-O {[%clk 0:20:29.1]} 6. d3 {[%clk 0:20:27.3]} 6... Bc5 {[%clk 0:20:36.4]} 7. Re1 {[%clk 0:20:30.1]} 7... Nb4 {[%clk 0:20:21.3]} 8. Nxe5 {[%clk 0:20:31.8]} 8... Nbd5 {[%clk 0:20:21.1]} 9. Bxd5 {[%clk 0:20:36.5]} 9... Bb4 {[%clk 0:20:27.6]} 10. h4 {[%clk 0:20:26.8]} 10... c5 {[%clk 0:20:36.9]} 11. a3 {[%clk 0:20:30.2]} 11... b6 {[%clk 0:20:46.4]} 12. axb4 {[%clk 0:20:38.8]} 12... Ba6 {[%clk 0:20:55.9]} 13. bxc5 {[%clk 0:20:47.6]} 13... Qe7 {[%clk 0:20:56.4]} 14. c6 {[%clk 0:20:52.7]} 14... d6 {[%clk 0:21:00]} 15. Nd7 {[%clk 0:20:57.6]} 15... Rfd8 {[%clk 0:20:59.2]} 16. e5 {[%clk 0:20:47.5]} 16... Ng4 {[%clk 0:21:03.5]} 17. exd6 {[%clk 0:20:55.9]} 17... Qf8 {[%clk 0:21:06.2]} 18. Qxg4 {[%clk 0:21:02.5]} 18... Re8 {[%clk 0:20:57.7]} 19. Nxf8 {[%clk 0:20:55.6]} 19... Kxf8 {[%clk 0:21:01.5]} 20. Na4 {[%clk 0:20:59.5]} 20... Bb5 {[%clk 0:21:02.9]} 21. b3 {[%clk 0:21:07.4]} 21... Re7 {[%clk 0:20:59.8]} 22. Bb2 {[%clk 0:21:15.7]} 22... Ree8 {[%clk 0:21:03.6]} 23. Qxg7# {[%clk 0:21:23.5]} 1-0